[Event "EYTCC U12 Open 2019"]
[Site "Pardubice"]
[Date "2019.07.15"]
[Round "5.23"]
[White "Bialiauski, Artsiom"]
[Black "Gregoric, Andraz"]
[Result "1-0"]
[ECO "A46"]
[WhiteElo "1784"]
[BlackElo "1911"]
[Annotator "NA"]
[PlyCount "119"]
[EventDate "2019.07.11"]
[EventType "swiss"]
[EventCountry "CZE"]
[SourceTitle "playchess.com"]
[Source "ChessBase"]
[SourceQuality "1"]
[WhiteTeam "Belarus"]
[BlackTeam "Slovenia"]
[WhiteTeamCountry "BLR"]
[BlackTeamCountry "SLO"]
[TimeControl "40/5400+30:1800+30"]

1. d4 {[%emt 0:00:00]} Nf6 {[%emt 0:00:00]} 2. Nf3 {[%emt 0:00:00]} e6 {[%emt 0:00:00]} 3. Bf4 {[%emt 0:00:03]} c5 {[%emt 0:00:14]} 4. e3 {[%emt 0:00:19]} Nc6 {[%emt 0:07:35]} 5. c3 {[%emt 0:06:33]} Qb6 {[%emt 0:00:13]} 6. Qb3 {[%emt 0:02:00]} Nh5 {[%emt 0:00:44]} 7. Bg5 {[%emt 0:03:34]} h6 {[%emt 0:00:08]} 8. Bh4 {[%emt 0:00:05]} g5 {[%emt 0:00:04]} 9. Bg3 {[%emt 0:00:06]} Nxg3 {[%emt 0:00:14]} 10. hxg3 {[%emt 0:00:12]} Qxb3 {[%emt 0:05:11]} 11. axb3 {[%emt 0:00:08]} b6 {[%emt 0:00:03]} 12. Nxg5 {[%emt 0:04:16]} cxd4 {[%emt 0:01:57]} 13. exd4 {[%emt 0:06:25]} Bb7 {[%emt 0:00:38]} 14. Nf3 {[%emt 0:00:51]} a6 {[%emt 0:05:08]} 15. Nbd2 {[%emt 0:00:06]} Bg7 {[%emt 0:02:09]} 16. Bd3 {[%emt 0:04:29]} Ke7 {[%emt 0:04:34]} 17. O-O {[%emt 0:03:08]} b5 {[%emt 0:02:20]} 18. b4 {[%emt 0:00:30]} d6 {[%emt 0:00:49]} 19. Rfe1 {[%emt 0:00:11]} Rag8 {[%emt 0:09:30]} 20. Be4 {[%emt 0:03:48]} Rc8 {[%emt 0:07:31]} 21. Nb3 {[%emt 0:00:06]} Rc7 {[%emt 0:00:19]} 22. Kf1 {[%emt 0:17:20]} Ra8 {[%emt 0:05:35]} 23. Na5 {[%emt 0:01:35]} Nxa5 {[%emt 0:00:20]} 24. Rxa5 {[%emt 0:00:08]} Bxe4 {[%emt 0:01:10]} 25. Rxe4 {[%emt 0:00:05]} Kd7 {[%emt 0:00:51]} 26. Re1 {[%emt 0:01:14]} Kc6 {[%emt 0:00:23]} 27. Ke2 {[%emt 0:00:37]} Kb6 {[%emt 0:05:07]} 28. Kd3 {[%emt 0:00:32]} Rac8 {[%emt 0:02:16]} 29. Re2 {[%emt 0:00:39]} Ra7 {[%emt 0:00:49]} 30. Ne1 {[%emt 0:00:27]} Bf6 {[%emt 0:07:10]} 31. Nc2 {[%emt 0:00:42]} Rac7 {[%emt 0:08:58]} 32. Re1 {[%emt 0:00:15]} Kb7 {[%emt 0:02:21]} 33. Rh1 {[%emt 0:00:54]} Rh8 {[%emt 0:04:06]} 34. Ne3 {[%emt 0:00:19]} Be7 {[%emt 0:01:11]} 35. Raa1 {[%emt 0:01:02]} Rcc8 {[%emt 0:01:02]} 36. Rh3 {[%emt 0:01:43]} Rh7 {[%emt 0:05:13]} 37. Rah1 {[%emt 0:00:10]} Rch8 {[%emt 0:01:44]} 38. Rh5 {[%emt 0:02:03]} d5 {[%emt 0:04:05]} 39. Ke2 {[%emt 0:00:27]} f5 {[%emt 0:00:16]} 40. f4 {[%emt 0:01:50]} Bf8 {[%emt 0:07:25]} 41. g4 {[%emt 0:34:14]} fxg4 {[%emt 0:01:55]} 42. Nxg4 {[%emt 0:00:00]} Rg7 {[%emt 0:14:03]} 43. Ne3 {[%emt 0:00:00]} Rg6 {[%emt 0:00:25]} 44. Kf3 {[%emt 0:00:00]} Bd6 {[%emt 0:01:15]} 45. g3 {[%emt 0:00:00]} Kc6 {[%emt 0:00:54]} 46. R1h3 {[%emt 0:00:00]} Kb6 {[%emt 0:03:04]} 47. Ng4 {[%emt 0:00:00]} Bf8 {[%emt 0:00:15]} 48. Ne5 {[%emt 0:00:00]} Rg7 {[%emt 0:00:50]} 49. g4 {[%emt 0:00:00]} a5 {[%emt 0:02:50]} 50. Rxh6 {[%emt 0:00:00]} Rxh6 {[%emt 0:00:10]} 51. Rxh6 {[%emt 0:00:00]} axb4 {[%emt 0:00:21]} 52. Rxe6+ {[%emt 0:00:00]} Ka5 {[%emt 0:00:03]} 53. Nc6+ {[%emt 0:00:00]} Ka4 {[%emt 0:00:03]} 54. Nxb4 {[%emt 0:00:00]} Bxb4 {[%emt 0:00:05]} 55. cxb4 {[%emt 0:00:00]} Kxb4 {[%emt 0:00:03]} 56. f5 {[%emt 0:00:00]} Kb3 {[%emt 0:00:31]} 57. f6 {[%emt 0:00:00]} Rf7 {[%emt 0:00:01]} 58. g5 {[%emt 0:00:00]} Kxb2 {[%emt 0:00:03]} 59. g6 {[%emt 0:00:00]} Rf8 {[%emt 0:00:06]} 60. g7 {[%emt 0:00:00]} 1-0

[Event "EYTCC U12 Open 2019"]
[Site "Pardubice"]
[Date "2019.07.15"]
[Round "5.24"]
[White "Olenik Campa, Rudi"]
[Black "Piatrenka, Ivan"]
[Result "1/2-1/2"]
[ECO "B06"]
[WhiteElo "1854"]
[BlackElo "1498"]
[Annotator "NA"]
[PlyCount "108"]
[EventDate "2019.07.11"]
[EventType "swiss"]
[EventCountry "CZE"]
[SourceTitle "playchess.com"]
[Source "ChessBase"]
[SourceQuality "1"]
[WhiteTeam "Slovenia"]
[BlackTeam "Belarus"]
[WhiteTeamCountry "SLO"]
[BlackTeamCountry "BLR"]
[TimeControl "40/5400+30:1800+30"]

1. e4 {[%emt 0:00:00]} d6 {[%emt 0:00:00]} 2. d4 {[%emt 0:00:00]} g6 {[%emt 0:00:00]} 3. Nc3 {[%emt 0:00:00]} Bg7 {[%emt 0:00:00]} 4. Be3 {[%emt 0:00:00]} c6 {[%emt 0:02:21]} 5. Qd2 {[%emt 0:00:15]} b5 {[%emt 0:01:48]} 6. Bd3 {[%emt 0:01:43]} Nf6 {[%emt 0:03:23]} 7. Bh6 {[%emt 0:02:16]} Bxh6 {[%emt 0:03:01]} 8. Qxh6 {[%emt 0:00:06]} e5 {[%emt 0:02:19]} 9. dxe5 {[%emt 0:03:40]} dxe5 {[%emt 0:00:01]} 10. Nf3 {[%emt 0:02:32]} Qe7 {[%emt 0:00:54]} 11. h3 {[%emt 0:08:46]} Nbd7 {[%emt 0:02:42]} 12. O-O {[%emt 0:03:25]} Qf8 {[%emt 0:17:15]} 13. Qe3 {[%emt 0:03:29]} Nh5 {[%emt 0:02:30]} 14. g3 {[%emt 0:02:47]} Qe7 {[%emt 0:01:10]} 15. Rfe1 {[%emt 0:06:24]} h6 {[%emt 0:05:16]} 16. Bf1 {[%emt 0:04:13]} g5 {[%emt 0:01:44]} 17. Kh2 {[%emt 0:03:00]} Ndf6 {[%emt 0:06:14]} 18. Nd2 {[%emt 0:04:07]} Ng7 {[%emt 0:15:03]} 19. Nb3 {[%emt 0:03:37]} Ne6 {[%emt 0:00:46]} 20. Bg2 {[%emt 0:04:33]} h5 {[%emt 0:01:38]} 21. Rh1 {[%emt 0:01:25]} Bd7 {[%emt 0:11:02]} 22. a4 {[%emt 0:08:15]} b4 {[%emt 0:02:43]} 23. Na2 {[%emt 0:00:38]} Rg8 {[%emt 0:01:54]} 24. c3 {[%emt 0:01:51]} bxc3 {[%emt 0:01:40]} 25. Qxc3 {[%emt 0:02:00]} Nd8 {[%emt 0:07:03]} 26. Nb4 {[%emt 0:02:37]} h4 {[%emt 0:00:23]} 27. Nd3 {[%emt 0:03:55]} g4 {[%emt 0:03:04]} 28. Nxe5 {[%emt 0:05:20]} hxg3+ {[%emt 0:02:25]} 29. fxg3 {[%emt 0:00:11]} gxh3 {[%emt 0:00:47]} 30. Bf3 {[%emt 0:00:11]} Rb8 {[%emt 0:02:50]} 31. Nc5 {[%emt 0:01:10]} Ne6 {[%emt 0:00:43]} 32. Ncxd7 {[%emt 0:02:17]} Nxd7 {[%emt 0:00:00]} 33. Rhg1 {[%emt 0:03:48]} Nxe5 {[%emt 0:00:24]} 34. Qxe5 {[%emt 0:00:07]} Rb3 {[%emt 0:00:18]} 35. Bd1 {[%emt 0:00:58]} Rb4 {[%emt 0:01:29]} 36. b3 {[%emt 0:03:36]} Ng5 {[%emt 0:01:00]} 37. Qf5 {[%emt 0:01:28]} Rb8 {[%emt 0:00:59]} 38. Rc1 {[%emt 0:01:10]} Rg6 {[%emt 0:01:34]} 39. Rf1 {[%emt 0:02:22]} Nxe4 {[%emt 0:00:34]} 40. Re1 {[%emt 0:00:17]} Re6 {[%emt 0:00:12]} 41. Bf3 {[%emt 0:30:52]} Nf6 {[%emt 0:15:08]} 42. Bxc6+ {[%emt 0:00:00]} Kf8 {[%emt 0:00:09]} 43. Rxe6 {[%emt 0:00:00]} Qxe6 {[%emt 0:00:44]} 44. Qxe6 {[%emt 0:00:00]} fxe6 {[%emt 0:00:01]} 45. Bb5 {[%emt 0:00:00]} Ne4 {[%emt 0:06:50]} 46. Kxh3 {[%emt 0:00:00]} Nd6 {[%emt 0:01:08]} 47. Rc5 Rb7 {[%emt 0:01:50]} 48. Rh5 {[%emt 0:00:00]} Kg7 {[%emt 0:01:07]} 49. b4 {[%emt 0:00:00]} Kg6 {[%emt 0:00:50]} 50. g4 {[%emt 0:00:00]} Rb8 {[%emt 0:01:58]} 51. Bd3+ {[%emt 0:00:00]} Kf6 {[%emt 0:00:36]} 52. g5+ {[%emt 0:00:00]} Ke5 {[%emt 0:00:02]} 53. g6+ {[%emt 0:00:00]} Kf6 {[%emt 0:03:32]} 54. Rh4 {[%emt 0:00:51]} Nf5 {[%emt 0:00:58]} 1/2-1/2

[Event "EYTCC U12 Open 2019"]
[Site "Pardubice"]
[Date "2019.07.16"]
[Round "6.1"]
[White "Fiszer, Bartosz"]
[Black "Finek, Vaclav"]
[Result "0-1"]
[ECO "C05"]
[WhiteElo "2124"]
[BlackElo "2043"]
[Annotator "NA"]
[PlyCount "80"]
[EventDate "2019.07.11"]
[EventType "swiss"]
[EventCountry "CZE"]
[SourceTitle "playchess.com"]
[Source "ChessBase"]
[SourceQuality "1"]
[WhiteTeam "Poland"]
[BlackTeam "Czech Republic"]
[WhiteTeamCountry "POL"]
[BlackTeamCountry "CZE"]
[TimeControl "40/5400+30:1800+30"]

1. e4 {[%emt 0:00:00]} e6 {[%emt 0:00:00]} 2. d4 {[%emt 0:00:00]} d5 {[%emt 0:00:00]} 3. Nd2 {[%emt 0:00:37]} Nf6 {[%emt 0:00:00]} 4. e5 {[%emt 0:00:04]} Nfd7 {[%emt 0:00:00]} 5. f4 {[%emt 0:00:08]} c5 {[%emt 0:00:00]} 6. c3 {[%emt 0:00:02]} Nc6 {[%emt 0:00:12]} 7. Ndf3 {[%emt 0:00:14]} cxd4 {[%emt 0:00:15]} 8. cxd4 {[%emt 0:00:02]} a5 {[%emt 0:00:26]} 9. Bd3 {[%emt 0:00:32]} a4 {[%emt 0:04:23]} 10. a3 {[%emt 0:02:59]} Nb6 {[%emt 0:03:29]} 11. Ne2 {[%emt 0:05:27]} Be7 {[%emt 0:05:05]} 12. O-O {[%emt 0:02:33]} Bd7 {[%emt 0:07:08]} 13. Kh1 {[%emt 0:06:49]} g6 {[%emt 0:06:00]} 14. g4 {[%emt 0:02:14]} h5 {[%emt 0:04:43]} 15. f5 {[%emt 0:23:19]} exf5 {[%emt 0:12:30]} 16. gxf5 {[%emt 0:01:04]} Bxf5 {[%emt 0:02:29]} 17. Bxf5 {[%emt 0:00:04]} gxf5 {[%emt 0:00:08]} 18. Ng3 {[%emt 0:00:21]} Qd7 {[%emt 0:03:16]} 19. Qd3 {[%emt 0:01:50]} O-O-O {[%emt 0:07:04]} 20. Bg5 {[%emt 0:08:35]} Rdg8 {[%emt 0:07:23]} 21. h4 {[%emt 0:04:46]} f4 {[%emt 0:13:07]} 22. Nf5 {[%emt 0:00:14]} Nc4 {[%emt 0:01:53]} 23. Rac1 {[%emt 0:12:51]} Kb8 {[%emt 0:04:18]} 24. Bxf4 Ka8 {[%emt 0:01:53]} 25. Qc2 {[%emt 0:05:30]} Na7 26. Bg5 {[%emt 0:10:35]} Bxg5 {[%emt 0:03:02]} 27. Nxg5 {[%emt 0:00:02]} Rg6 {[%emt 0:01:31]} 28. Qf2 {[%emt 0:03:45]} f6 {[%emt 0:01:53]} 29. e6 {[%emt 0:00:46]} Qe8 {[%emt 0:00:46]} 30. Nf7 {[%emt 0:00:00]} Rhg8 {[%emt 0:00:53]} 31. Rfe1 Nc8 {[%emt 0:01:33]} 32. Qf3 {[%emt 0:03:15]} Ne7 {[%emt 0:05:15]} 33. Nxe7 {[%emt 0:00:44]} Qxe7 {[%emt 0:00:07]} 34. Qxd5 {[%emt 0:00:18]} f5 {[%emt 0:00:22]} 35. Ng5 {[%emt 0:05:59]} Rxg5 {[%emt 0:00:34]} 36. Re2 {[%emt 0:00:05]} Rg4 {[%emt 0:00:29]} 37. Qxf5 {[%emt 0:00:48]} Rxh4+ {[%emt 0:00:15]} 38. Rh2 {[%emt 0:00:01]} Rxh2+ {[%emt 0:00:12]} 39. Kxh2 {[%emt 0:00:03]} Qh4+ {[%emt 0:00:11]} 40. Qh3 {[%emt 0:00:01]} Qf4+ {[%emt 0:00:01]} 0-1

[Event "EYTCC U12 Open 2019"]
[Site "Pardubice"]
[Date "2019.07.16"]
[Round "6.2"]
[White "Nemec, Jachym"]
[Black "Seemann, Jakub"]
[Result "0-1"]
[ECO "B90"]
[WhiteElo "1927"]
[BlackElo "2017"]
[Annotator "NA"]
[PlyCount "60"]
[EventDate "2019.07.11"]
[EventType "swiss"]
[EventCountry "CZE"]
[SourceTitle "playchess.com"]
[Source "ChessBase"]
[SourceQuality "1"]
[WhiteTeam "Czech Republic"]
[BlackTeam "Poland"]
[WhiteTeamCountry "CZE"]
[BlackTeamCountry "POL"]
[TimeControl "40/5400+30:1800+30"]

1. e4 {[%emt 0:00:00]} c5 {[%emt 0:00:00]} 2. Nf3 {[%emt 0:00:00]} d6 {[%emt 0:00:00]} 3. d4 {[%emt 0:00:05]} cxd4 {[%emt 0:00:00]} 4. Nxd4 {[%emt 0:00:19]} Nf6 {[%emt 0:00:01]} 5. Nc3 {[%emt 0:00:09]} a6 {[%emt 0:00:06]} 6. h3 {[%emt 0:00:13]} e5 {[%emt 0:00:10]} 7. Nde2 {[%emt 0:00:09]} h5 {[%emt 0:00:08]} 8. Bg5 {[%emt 0:00:11]} Be6 {[%emt 0:00:12]} 9. Bxf6 {[%emt 0:00:21]} Qxf6 {[%emt 0:00:06]} 10. Nd5 {[%emt 0:00:12]} Qd8 {[%emt 0:00:05]} 11. Qd3 {[%emt 0:00:08]} Nd7 {[%emt 0:00:38]} 12. Nec3 {[%emt 0:00:20]} g6 {[%emt 0:01:25]} 13. O-O-O {[%emt 0:00:20]} Rc8 {[%emt 0:01:00]} 14. Be2 {[%emt 0:02:36]} b5 {[%emt 0:01:09]} 15. Qf3 {[%emt 0:00:39]} Bh6+ {[%emt 0:02:38]} 16. Kb1 {[%emt 0:00:27]} O-O {[%emt 0:01:09]} 17. g4 {[%emt 0:01:03]} h4 {[%emt 0:00:07]} 18. Rhg1 {[%emt 0:00:45]} Bg5 {[%emt 0:02:10]} 19. Ne3 {[%emt 0:08:08]} Rxc3 {[%emt 0:05:20]} 20. bxc3 {[%emt 0:05:55]} Qa5 {[%emt 0:00:30]} 21. Rd5 {[%emt 0:27:48]} Qa3 {[%emt 0:08:34]} 22. c4 {[%emt 0:02:38]} Qb4+ {[%emt 0:03:40]} 23. Ka1 {[%emt 0:00:13]} Qc3+ {[%emt 0:00:25]} 24. Kb1 {[%emt 0:00:05]} bxc4 {[%emt 0:01:34]} 25. Bxc4 {[%emt 0:00:17]} Bxe3 {[%emt 0:01:41]} 26. Bb3 {[%emt 0:01:28]} Bxd5 {[%emt 0:00:40]} 27. Bxd5 {[%emt 0:00:18]} Qb4+ {[%emt 0:00:36]} 28. Bb3 {[%emt 0:00:09]} Bd4 {[%emt 0:00:16]} 29. Rd1 {[%emt 0:00:30]} a5 {[%emt 0:00:17]} 30. a4 {[%emt 0:00:28]} Nc5 {[%emt 0:00:41]} 0-1

[Event "EYTCC U12 Open 2019"]
[Site "Pardubice"]
[Date "2019.07.16"]
[Round "6.3"]
[White "Meers, Hubert"]
[Black "Brozka, Karel"]
[Result "1/2-1/2"]
[ECO "B16"]
[WhiteElo "2141"]
[BlackElo "1816"]
[Annotator "NA"]
[PlyCount "97"]
[EventDate "2019.07.11"]
[EventType "swiss"]
[EventCountry "CZE"]
[SourceTitle "playchess.com"]
[Source "ChessBase"]
[SourceQuality "1"]
[WhiteTeam "Poland"]
[BlackTeam "Czech Republic"]
[WhiteTeamCountry "POL"]
[BlackTeamCountry "CZE"]
[TimeControl "40/5400+30:1800+30"]

1. e4 {[%emt 0:00:00]} c6 {[%emt 0:00:00]} 2. d4 {[%emt 0:00:00]} d5 {[%emt 0:00:00]} 3. Nd2 {[%emt 0:00:00]} dxe4 {[%emt 0:00:03]} 4. Nxe4 {[%emt 0:00:00]} Nf6 {[%emt 0:00:09]} 5. Nxf6+ {[%emt 0:00:00]} gxf6 {[%emt 0:00:05]} 6. c3 {[%emt 0:03:12]} Bf5 {[%emt 0:01:02]} 7. Nf3 {[%emt 0:00:08]} Qc7 {[%emt 0:00:37]} 8. Bc4 {[%emt 0:05:06]} Nd7 {[%emt 0:05:35]} 9. Nh4 {[%emt 0:00:52]} Bg6 {[%emt 0:00:19]} 10. f4 {[%emt 0:03:58]} Nb6 {[%emt 0:05:09]} 11. Bb3 {[%emt 0:05:24]} Be4 {[%emt 0:07:42]} 12. Qe2 {[%emt 0:01:28]} f5 {[%emt 0:01:42]} 13. Nf3 {[%emt 0:06:26]} Nd5 {[%emt 0:15:11]} 14. Ng5 {[%emt 0:05:26]} e6 {[%emt 0:03:44]} 15. Nxe4 {[%emt 0:00:35]} fxe4 {[%emt 0:00:11]} 16. Qxe4 {[%emt 0:00:15]} O-O-O {[%emt 0:01:13]} 17. Bd2 {[%emt 0:04:44]} Bd6 {[%emt 0:02:15]} 18. g3 {[%emt 0:02:39]} Kb8 {[%emt 0:01:43]} 19. O-O-O {[%emt 0:00:49]} Nf6 {[%emt 0:03:46]} 20. Qf3 {[%emt 0:01:06]} h5 {[%emt 0:00:46]} 21. f5 {[%emt 0:01:48]} e5 {[%emt 0:02:41]} 22. dxe5 {[%emt 0:01:42]} Bxe5 {[%emt 0:00:15]} 23. Rhe1 {[%emt 0:00:14]} Rhe8 {[%emt 0:02:26]} 24. Bg5 {[%emt 0:03:15]} Rxd1+ {[%emt 0:00:52]} 25. Qxd1 {[%emt 0:01:12]} Ng4 {[%emt 0:03:21]} 26. Qd2 {[%emt 0:05:58]} f6 {[%emt 0:01:51]} 27. Bf4 {[%emt 0:03:06]} Rd8 {[%emt 0:00:31]} 28. Bxe5 {[%emt 0:09:42]} Nxe5 {[%emt 0:00:20]} 29. Qe2 {[%emt 0:00:20]} Nd3+ {[%emt 0:00:23]} 30. Kc2 {[%emt 0:00:08]} Nxe1+ {[%emt 0:00:42]} 31. Qxe1 {[%emt 0:00:09]} Qd6 {[%emt 0:01:30]} 32. Qe2 {[%emt 0:00:28]} h4 {[%emt 0:02:13]} 33. gxh4 {[%emt 0:00:51]} Qf4 {[%emt 0:00:56]} 34. Be6 {[%emt 0:06:33]} Qxh4 {[%emt 0:05:26]} 35. Kb3 {[%emt 0:03:33]} Qf4 36. Qg2 {[%emt 0:06:51]} a5 {[%emt 0:20:43]} 37. Qg7 Qe5 {[%emt 0:09:12]} 38. a4 {[%emt 0:07:30]} Rd2 {[%emt 0:02:27]} 39. h4 {[%emt 0:00:26]} b5 {[%emt 0:01:15]} 40. Qg8+ {[%emt 0:02:56]} Ka7 {[%emt 0:00:00]} 41. Qg1+ {[%emt 0:08:06]} Kb7 42. Qg7+ Kb6 {[%emt 0:06:25]} 43. Qg1+ {[%emt 0:01:12]} c5 {[%emt 0:06:09]} 44. axb5 {[%emt 0:03:44]} Qe4 {[%emt 0:05:20]} 45. Qc1 {[%emt 0:02:26]} Qe3 {[%emt 0:06:03]} 46. Qh1 {[%emt 0:00:40]} a4+ {[%emt 0:01:51]} 47. Ka3 {[%emt 0:01:03]} Rd6 {[%emt 0:05:22]} 48. Qa8 {[%emt 0:00:30]} Kxb5 49. Qb7+ {[%emt 0:06:05]} 1/2-1/2

[Event "EYTCC U12 Open 2019"]
[Site "Pardubice"]
[Date "2019.07.16"]
[Round "6.4"]
[White "Janous, Marek"]
[Black "Klimkowski, Jan"]
[Result "0-1"]
[ECO "B52"]
[WhiteElo "1717"]
[BlackElo "1985"]
[Annotator "NA"]
[PlyCount "110"]
[EventDate "2019.07.11"]
[EventType "swiss"]
[EventCountry "CZE"]
[SourceTitle "playchess.com"]
[Source "ChessBase"]
[SourceQuality "1"]
[WhiteTeam "Czech Republic"]
[BlackTeam "Poland"]
[WhiteTeamCountry "CZE"]
[BlackTeamCountry "POL"]
[TimeControl "40/5400+30:1800+30"]

1. e4 {[%emt 0:00:00]} c5 {[%emt 0:00:00]} 2. Nf3 {[%emt 0:00:00]} d6 {[%emt 0:00:00]} 3. Bb5+ {[%emt 0:00:08]} Bd7 {[%emt 0:00:36]} 4. c4 {[%emt 0:01:29]} Nc6 {[%emt 0:03:52]} 5. d4 {[%emt 0:04:09]} cxd4 {[%emt 0:01:05]} 6. Nxd4 {[%emt 0:00:28]} g6 {[%emt 0:00:13]} 7. Nc3 {[%emt 0:00:58]} Bg7 {[%emt 0:00:11]} 8. Bxc6 {[%emt 0:00:13]} bxc6 {[%emt 0:01:58]} 9. O-O {[%emt 0:00:29]} Nf6 {[%emt 0:00:53]} 10. h3 {[%emt 0:00:14]} O-O {[%emt 0:01:27]} 11. Re1 {[%emt 0:01:34]} e5 {[%emt 0:06:23]} 12. Nf3 {[%emt 0:02:02]} Be6 {[%emt 0:01:18]} 13. b3 {[%emt 0:00:12]} Qc7 {[%emt 0:05:45]} 14. Qc2 {[%emt 0:03:36]} Rac8 {[%emt 0:04:56]} 15. Ba3 {[%emt 0:02:42]} Rfd8 {[%emt 0:01:22]} 16. Rad1 {[%emt 0:00:44]} Nh5 {[%emt 0:08:50]} 17. Qd2 {[%emt 0:27:22]} Bf8 {[%emt 0:02:45]} 18. Qe3 {[%emt 0:07:17]} Nf4 {[%emt 0:04:27]} 19. c5 {[%emt 0:02:09]} dxc5 {[%emt 0:03:55]} 20. Bxc5 {[%emt 0:11:26]} Bh6 {[%emt 0:00:28]} 21. Kh2 {[%emt 0:01:40]} Kg7 {[%emt 0:01:27]} 22. Bxa7 {[%emt 0:25:17]} Nxg2 {[%emt 0:01:42]} 23. Qc5 {[%emt 0:00:33]} Nxe1 {[%emt 0:01:17]} 24. Rxe1 {[%emt 0:00:40]} Rd3 {[%emt 0:01:32]} 25. Bb6 {[%emt 0:01:42]} Rxc3 {[%emt 0:01:29]} 26. Qa5 {[%emt 0:03:26]} Qb8 {[%emt 0:02:19]} 27. Ba7 Bf4+ {[%emt 0:00:47]} 28. Kg1 {[%emt 0:01:27]} Qb7 {[%emt 0:02:02]} 29. Be3 {[%emt 0:01:41]} Rxe3 {[%emt 0:02:08]} 30. fxe3 {[%emt 0:00:05]} Bg3 {[%emt 0:00:42]} 31. Rd1 {[%emt 0:00:40]} Qe7 {[%emt 0:03:19]} 32. Kg2 {[%emt 0:00:28]} Bh4 {[%emt 0:00:13]} 33. Qxe5+ {[%emt 0:00:27]} Bf6 {[%emt 0:00:06]} 34. Qg3 Rd8 {[%emt 0:02:01]} 35. Rc1 {[%emt 0:00:50]} Qa7 {[%emt 0:00:37]} 36. Rf1 {[%emt 0:01:12]} Qxe3 {[%emt 0:02:32]} 37. e5 {[%emt 0:00:29]} Be7 {[%emt 0:00:37]} 38. Re1 {[%emt 0:00:23]} Qc3 {[%emt 0:00:37]} 39. Kh2 {[%emt 0:00:41]} Rd3 {[%emt 0:01:40]} 40. Rf1 {[%emt 0:00:10]} Bd5 41. Kg2 {[%emt 0:04:46]} Rd2+ {[%emt 0:02:32]} 42. Rf2 {[%emt 0:02:56]} Bc5 {[%emt 0:01:01]} 43. Rxd2 {[%emt 0:00:35]} Qxd2+ {[%emt 0:00:06]} 44. Kf1 {[%emt 0:01:08]} Qd1+ {[%emt 0:00:08]} 45. Ne1 {[%emt 0:00:42]} Qh5 {[%emt 0:01:14]} 46. a4 {[%emt 0:03:20]} Bd4 {[%emt 0:01:54]} 47. Nd3 {[%emt 0:01:14]} Qd1+ {[%emt 0:00:25]} 48. Ne1 {[%emt 0:00:15]} Qxb3 {[%emt 0:01:05]} 49. Qxb3 {[%emt 0:01:28]} Bxb3 {[%emt 0:00:04]} 50. Nf3 {[%emt 0:01:12]} Bc3 51. Ke2 {[%emt 0:00:28]} Bxa4 {[%emt 0:02:10]} 52. Kd3 {[%emt 0:00:04]} Bd1 53. Ng5 Bxe5 {[%emt 0:01:00]} 54. Ne4 {[%emt 0:01:40]} Bf3 {[%emt 0:00:27]} 55. Nd2 {[%emt 0:00:22]} Bd5 {Kd4} 0-1

[Event "EYTCC U12 Open 2019"]
[Site "Pardubice"]
[Date "2019.07.16"]
[Round "6.5"]
[White "Cohen, Elad"]
[Black "Tran, David"]
[Result "1/2-1/2"]
[ECO "C78"]
[WhiteElo "2002"]
[BlackElo "2112"]
[Annotator "NA"]
[PlyCount "66"]
[EventDate "2019.07.11"]
[EventType "swiss"]
[EventCountry "CZE"]
[SourceTitle "playchess.com"]
[Source "ChessBase"]
[SourceQuality "1"]
[WhiteTeam "Israel"]
[BlackTeam "Hungary"]
[WhiteTeamCountry "ISR"]
[BlackTeamCountry "HUN"]
[TimeControl "40/5400+30:1800+30"]

1. e4 {[%emt 0:00:00]} e5 {[%emt 0:00:00]} 2. Nf3 {[%emt 0:00:00]} Nc6 {[%emt 0:00:00]} 3. Bb5 {[%emt 0:00:01]} a6 {[%emt 0:00:00]} 4. Ba4 {[%emt 0:00:10]} Nf6 {[%emt 0:00:00]} 5. O-O {[%emt 0:00:14]} b5 {[%emt 0:00:00]} 6. Bb3 {[%emt 0:00:19]} Be7 {[%emt 0:00:00]} 7. d4 {[%emt 0:00:39]} d6 {[%emt 0:00:03]} 8. dxe5 {[%emt 0:00:28]} Nxe5 {[%emt 0:02:40]} 9. Nxe5 {[%emt 0:01:16]} dxe5 {[%emt 0:00:38]} 10. Qxd8+ {[%emt 0:01:13]} Bxd8 {[%emt 0:00:04]} 11. a4 {[%emt 0:00:59]} Bb7 {[%emt 0:01:36]} 12. axb5 {[%emt 0:02:21]} axb5 {[%emt 0:00:25]} 13. Rxa8 {[%emt 0:00:14]} Bxa8 {[%emt 0:00:06]} 14. f3 {[%emt 0:05:52]} Be7 {[%emt 0:14:24]} 15. Be3 {[%emt 0:11:29]} O-O {[%emt 0:02:15]} 16. Nc3 {[%emt 0:05:12]} c6 {[%emt 0:01:46]} 17. Ra1 {[%emt 0:01:37]} Bb7 {[%emt 0:00:28]} 18. Ra7 {[%emt 0:06:19]} Rb8 {[%emt 0:00:14]} 19. Kf1 {[%emt 0:03:22]} Nd7 {[%emt 0:10:19]} 20. Ke2 {[%emt 0:08:29]} Bc5 {[%emt 0:04:29]} 21. Bxc5 {[%emt 0:06:46]} Nxc5 {[%emt 0:00:09]} 22. Na2 {[%emt 0:00:38]} Ra8 {[%emt 0:03:32]} 23. Rxa8+ {[%emt 0:00:22]} Bxa8 {[%emt 0:00:05]} 24. Nb4 {[%emt 0:00:25]} Kf8 {[%emt 0:13:02]} 25. Ba2 {[%emt 0:13:08]} Ke7 {[%emt 0:07:32]} 26. c4 {[%emt 0:00:57]} Ne6 {[%emt 0:01:17]} 27. cxb5 {[%emt 0:01:19]} cxb5 {[%emt 0:01:30]} 28. Bxe6 {[%emt 0:01:24]} Kxe6 {[%emt 0:00:19]} 29. Na6 {[%emt 0:01:21]} Kd6 {[%emt 0:01:15]} 30. b4 {[%emt 0:00:20]} g6 {[%emt 0:06:20]} 31. Nc5 {[%emt 0:05:19]} f5 {[%emt 0:02:03]} 32. g4 {[%emt 0:00:48]} fxe4 {[%emt 0:00:45]} 33. fxe4 {[%emt 0:00:19]} g5 {[%emt 0:00:18]} 1/2-1/2